Workbook

Sheet EXCEL2.RU (2) (hidden)
A1: EXCEL2.RU - профессиональные приемы для всех >>>
A2: Хорошая новость! Большинство задач, которые Вы хотите решить с помощью MS EXCEL – уже давно решены! На нашем сайте Вы найдете решения множества из наиболее часто встречающихся задач. Сайт содержит более 500 качественно оформленных статей с файлами примеров.
A3: Миссия нашего сайта - превратить Вашу работу в MS EXCEL в приятное времяпрепровождение и ускорить решение Ваших задач. Мы постоянно работаем над содержанием и оформлением нашего сайта и благодарим активных пользователей за поддержку и неоценимую помощь в нашей работе.

Sheet Лист2
G1: Филиал | H1: ="Кп в риске "&G1 -> Кп в риске Филиал
F3: 4
I5: 2
J8: в KGS
D22: КП в риске
C23: 2016-01-01 | D23: 2016-01-02 | E23: 2016-01-03 | F23: 2016-01-04 | G23: 2016-01-05 | H23: 2016-01-06 | I23: 2016-01-07 | J23: 2016-01-08
B24: КП | C24: =SUMIFS(Лист3!$C:$C,Лист3!$B:$B,C23,Лист3!$A:$A,$G$1) -> 3775000 | D24: =SUMIFS(Лист3!$C:$C,Лист3!$B:$B,D23,Лист3!$A:$A,$G$1) -> 3774950 | E24: =SUMIFS(Лист3!$C:$C,Лист3!$B:$B,E23,Лист3!$A:$A,$G$1) -> 3774900 | F24: =SUMIFS(Лист3!$C:$C,Лист3!$B:$B,F23,Лист3!$A:$A,$G$1) -> 3774850 | G24: =SUMIFS(Лист3!$C:$C,Лист3!$B:$B,G23,Лист3!$A:$A,$G$1) -> 3774800 | H24: =SUMIFS(Лист3!$C:$C,Лист3!$B:$B,H23,Лист3!$A:$A,$G$1) -> 3774750 | I24: =SUMIFS(Лист3!$C:$C,Лист3!$B:$B,I23,Лист3!$A:$A,$G$1) -> 3774700 | J24: =SUMIFS(Лист3!$C:$C,Лист3!$B:$B,J23,Лист3!$A:$A,$G$1) -> 3774650
B25: Пар 0 | C25: =SUMIFS(Лист3!$D:$D,Лист3!$B:$B,C23,Лист3!$A:$A,$G$1) -> 639000 | D25: =SUMIFS(Лист3!$D:$D,Лист3!$B:$B,D23,Лист3!$A:$A,$G$1) -> 638950 | E25: =SUMIFS(Лист3!$D:$D,Лист3!$B:$B,E23,Лист3!$A:$A,$G$1) -> 638900 | F25: =SUMIFS(Лист3!$D:$D,Лист3!$B:$B,F23,Лист3!$A:$A,$G$1) -> 638850 | G25: =SUMIFS(Лист3!$D:$D,Лист3!$B:$B,G23,Лист3!$A:$A,$G$1) -> 638800 | H25: =SUMIFS(Лист3!$D:$D,Лист3!$B:$B,H23,Лист3!$A:$A,$G$1) -> 638750 | I25: =SUMIFS(Лист3!$D:$D,Лист3!$B:$B,I23,Лист3!$A:$A,$G$1) -> 638700 | J25: =SUMIFS(Лист3!$D:$D,Лист3!$B:$B,J23,Лист3!$A:$A,$G$1) -> 638650
B26: Пар 30 | C26: =SUMIFS(Лист3!$E:$E,Лист3!$B:$B,C23,Лист3!$A:$A,$G$1) -> 329000 | D26: =SUMIFS(Лист3!$E:$E,Лист3!$B:$B,D23,Лист3!$A:$A,$G$1) -> 328950 | E26: =SUMIFS(Лист3!$E:$E,Лист3!$B:$B,E23,Лист3!$A:$A,$G$1) -> 328900 | F26: =SUMIFS(Лист3!$E:$E,Лист3!$B:$B,F23,Лист3!$A:$A,$G$1) -> 328850 | G26: =SUMIFS(Лист3!$E:$E,Лист3!$B:$B,G23,Лист3!$A:$A,$G$1) -> 328800 | H26: =SUMIFS(Лист3!$E:$E,Лист3!$B:$B,H23,Лист3!$A:$A,$G$1) -> 328750 | I26: =SUMIFS(Лист3!$E:$E,Лист3!$B:$B,I23,Лист3!$A:$A,$G$1) -> 328700 | J26: =SUMIFS(Лист3!$E:$E,Лист3!$B:$B,J23,Лист3!$A:$A,$G$1) -> 328650

Sheet Лист3
F2: в USD
F3: в KGS
F4: номинал | I4: 74.2525
F6: Номинал | I6: USD
A7: Участок | B7: дата | C7: КП | D7: Пар 0 | E7: Пар 30 | F7: КП (₽) | G7: Пар 0 (₽) | H7: Пар 30 (₽) | I7: КП ($) | J7: Пар 0 ($) | K7: Пар 30 ($)
A8: Банк | B8: 2016-01-01 | C8: 7550000 | D8: 1278000 | E8: 658000 | F8: =C8/2 -> 3775000 | G8: =D8-258 -> 1277742 | H8: =E8-266 -> 657734 | I8: =C8/$I$4 -> 101680.0781 | J8: =D8/$I$4 -> 17211.5417 | K8: 8861.65449
A9: Филиал | B9: 2016-01-01 | C9: =C8/2 -> 3775000 | D9: =D8/2 -> 639000 | E9: 329000 | F9: =C9/2 -> 1887500 | G9: =D9-258 -> 638742 | H9: =E9-266 -> 328734 | I9: =C9/$I$4 -> 50840.03906 | J9: =D9/$I$4 -> 8605.770849 | K9: =E9/$I$4 -> 4430.827245
A10: Банк | B10: 2016-01-02 | C10: =C8-100 -> 7549900 | D10: =D8-100 -> 1277900 | E10: 657900 | F10: 3774950 | G10: 1277642 | H10: 657634 | I10: 101678.7314 | J10: 17210.19494 | K10: 8860.307734
A11: Филиал | B11: 2016-01-02 | C11: =C10/2 -> 3774950 | D11: =D10/2 -> 638950 | E11: =E10/2 -> 328950 | F11: 1887475 | G11: 638692 | H11: 328684 | I11: 50839.36568 | J11: 8605.097471 | K11: 4430.153867
A12: Банк | B12: 2016-01-03 | C12: =C10-100 -> 7549800 | D12: 1277800 | E12: 657800 | F12: 3774900 | G12: 1277542 | H12: 657534 | I12: 101677.3846 | J12: 17208.84819 | K12: 8858.960978
A13: Филиал | B13: 2016-01-03 | C13: =C12/2 -> 3774900 | D13: =D12/2 -> 638900 | E13: =E12/2 -> 328900 | F13: 1887450 | G13: 638642 | H13: 328634 | I13: 50838.6923 | J13: 8604.424093 | K13: 4429.480489
A14: Банк | B14: 2016-01-04 | C14: =C12-100 -> 7549700 | D14: 1277700 | E14: 657700 | F14: 3774850 | G14: 1277442 | H14: 657434 | I14: 101676.0378 | J14: 17207.50143 | K14: 8857.614222
A15: Филиал | B15: 2016-01-04 | C15: =C14/2 -> 3774850 | D15: =D14/2 -> 638850 | E15: =E14/2 -> 328850 | F15: 1887425 | G15: 638592 | H15: 328584 | I15: 50838.01892 | J15: 8603.750715 | K15: 4428.807111
A16: Банк | B16: 2016-01-05 | C16: =C14-100 -> 7549600 | D16: 1277600 | E16: 657600 | F16: 3774800 | G16: 1277342 | H16: 657334 | I16: 101674.6911 | J16: 17206.15467 | K16: 8856.267466
A17: Филиал | B17: 2016-01-05 | C17: =C16/2 -> 3774800 | D17: =D16/2 -> 638800 | E17: =E16/2 -> 328800 | F17: 1887400 | G17: 638542 | H17: 328534 | I17: 50837.34554 | J17: 8603.077337 | K17: 4428.133733
A18: Банк | B18: 2016-01-06 | C18: =C16-100 -> 7549500 | D18: 1277500 | E18: 657500 | F18: 3774750 | G18: 1277242 | H18: 657234 | I18: 101673.3443 | J18: 17204.80792 | K18: 8854.92071
A19: Филиал | B19: 2016-01-06 | C19: =C18/2 -> 3774750 | D19: =D18/2 -> 638750 | E19: =E18/2 -> 328750 | F19: 1887375 | G19: 638492 | H19: 328484 | I19: 50836.67217 | J19: 8602.403959 | K19: 4427.460355
A20: Банк | B20: 2016-01-07 | C20: =C18-100 -> 7549400 | D20: 1277400 | E20: 657400 | F20: 3774700 | G20: 1277142 | H20: 657134 | I20: 101671.9976 | J20: 17203.46116 | K20: 8853.573954
A21: Филиал | B21: 2016-01-07 | C21: =C20/2 -> 3774700 | D21: =D20/2 -> 638700 | E21: =E20/2 -> 328700 | F21: 1887350 | G21: 638442 | H21: 328434 | I21: 50835.99879 | J21: 8601.730581 | K21: 4426.786977
A22: Банк | B22: 2016-01-08 | C22: =C20-100 -> 7549300 | D22: 1277300 | E22: 657300 | F22: 3774650 | G22: 1277042 | H22: 657034 | I22: 101670.6508 | J22: 17202.11441 | K22: 8852.227198
A23: Филиал | B23: 2016-01-08 | C23: =C22/2 -> 3774650 | D23: =D22/2 -> 638650 | E23: =E22/2 -> 328650 | F23: 1887325 | G23: 638392 | H23: 328384 | I23: 50835.32541 | J23: 8601.057203 | K23: 4426.113599

Sheet СводИдиагр
A1: Участок | B1: Филиал | D1: ="КП в риске "&B1&" ("&F1&")"&H1 -> КП в риске Филиал (USD)$ | E1: Курс валюты | F1: USD | G1: =VLOOKUP(F1,Данные!F2:H3,3,) -> 74.2525 | H1: =VLOOKUP(F1,Данные!F2:H3,2,) -> $
A3: дата | B3: Сумма КП. | C3: Сумма Пар 0. | D3: Сумма Пар 30.
A4: 2016-01-01 | B4: 50840.03906 | C4: 8605.770849 | D4: 4430.827245
A5: 2016-01-02 | B5: 50839.36568 | C5: 8605.097471 | D5: 4430.153867
A6: 2016-01-05 | B6: 50837.34554 | C6: 8603.077337 | D6: 4428.133733
A7: Общий итог | B7: 50838.91676 | C7: 8604.648553 | D7: 4429.704948

Sheet Данные
F2: USD | G2: $ | H2: 74.2525
F3: KGS | G3: ₽ | H3: 0.95
F4: номинал | I4: =СводИдиагр!G1 -> 74.2525
A7: Участок | B7: дата | C7: КП | D7: Пар 0 | E7: Пар 30 | F7: Дол
A8: Банк | B8: 2016-01-01 | C8: 7550000 | D8: 1278000 | E8: 658000 | F8: =СводИдиагр!$G$1 -> 74.2525
A9: Филиал | B9: 2016-01-01 | C9: =C8/2 -> 3775000 | D9: =D8/2 -> 639000 | E9: 329000 | F9: =СводИдиагр!$G$1 -> 74.2525
A10: Банк | B10: 2016-01-02 | C10: =C8-100 -> 7549900 | D10: =D8-100 -> 1277900 | E10: 657900 | F10: =СводИдиагр!$G$1 -> 74.2525
A11: Филиал | B11: 2016-01-02 | C11: =C10/2 -> 3774950 | D11: =D10/2 -> 638950 | E11: 328950 | F11: =СводИдиагр!$G$1 -> 74.2525
A12: Банк | B12: 2016-01-03 | C12: =C10-100 -> 7549800 | D12: 1277800 | E12: 657800 | F12: =СводИдиагр!$G$1 -> 74.2525
A13: Филиал | B13: 2016-01-03 | C13: =C12/2 -> 3774900 | D13: =D12/2 -> 638900 | E13: 328900 | F13: =СводИдиагр!$G$1 -> 74.2525
A14: Банк | B14: 2016-01-04 | C14: =C12-100 -> 7549700 | D14: 1277700 | E14: 657700 | F14: =СводИдиагр!$G$1 -> 74.2525
A15: Филиал | B15: 2016-01-04 | C15: =C14/2 -> 3774850 | D15: =D14/2 -> 638850 | E15: 328850 | F15: =СводИдиагр!$G$1 -> 74.2525
A16: Банк | B16: 2016-01-05 | C16: =C14-100 -> 7549600 | D16: 1277600 | E16: 657600 | F16: =СводИдиагр!$G$1 -> 74.2525
A17: Филиал | B17: 2016-01-05 | C17: =C16/2 -> 3774800 | D17: =D16/2 -> 638800 | E17: 328800 | F17: =СводИдиагр!$G$1 -> 74.2525
A18: Банк | B18: 2016-01-06 | C18: =C16-100 -> 7549500 | D18: 1277500 | E18: 657500 | F18: =СводИдиагр!$G$1 -> 74.2525
A19: Филиал | B19: 2016-01-06 | C19: =C18/2 -> 3774750 | D19: =D18/2 -> 638750 | E19: 328750 | F19: =СводИдиагр!$G$1 -> 74.2525
A20: Банк | B20: 2016-01-07 | C20: =C18-100 -> 7549400 | D20: 1277400 | E20: 657400 | F20: =СводИдиагр!$G$1 -> 74.2525
A21: Филиал | B21: 2016-01-07 | C21: =C20/2 -> 3774700 | D21: =D20/2 -> 638700 | E21: 328700 | F21: =СводИдиагр!$G$1 -> 74.2525
A22: Банк | B22: 2016-01-08 | C22: =C20-100 -> 7549300 | D22: 1277300 | E22: 657300 | F22: =СводИдиагр!$G$1 -> 74.2525
A23: Филиал | B23: 2016-01-08 | C23: =C22/2 -> 3774650 | D23: =D22/2 -> 638650 | E23: 328650 | F23: =СводИдиагр!$G$1 -> 74.2525
